bitfinex-derivatives/quotes_ETHF0:USTF0_20210407
["timestamp","ask_amount","ask_price","bid_price","bid_amount"]
[1617813733939,12.8737,1995.8,1995.4,6.15]
[1617813734352,12.8737,1995.8,1995.7,6.28]
[1617813734544,12.8737,1995.8,1995.4,6.29]
[1617813735046,2.90695,1995.5,1995.4,9.19695]
[1617813735860,5.47555,1995.5,1995.3,77.8501]
[1617813736041,5.47555,1995.5,1994.2,2.0]
[1617813736343,5.47555,1995.5,1994.4,57.8668]
[1617813736843,5.47555,1995.5,1994.5,6.19]
[1617813737141,2.5686,1995.5,1995.1,2.90695]
[1617813738245,12.8737,1995.8,1995.1,2.90695]
[1617813738443,12.8737,1995.8,1995.2,6.15]
[1617813738644,12.8737,1995.8,1995.3,67.6718]
[1617813739058,2.90695,1995.4,1995.3,67.6718]
[1617813739445,12.8737,1995.8,1995.3,73.9718]
[1617813741247,12.8737,1995.8,1995.7,2.90695]
[1617813742048,12.8737,1995.8,1995.3,67.6718]
[1617813742754,12.8737,1995.8,1995.4,6.1]
[1617813743048,12.8737,1995.8,1995.3,67.6718]
[1617813743254,2.90695,1995.5,1995.3,67.6718]
[1617813744549,2.90695,1995.5,1995.4,6.09]
[1617813744750,2.90695,1995.5,1995.4,9.1508]
[1617813745152,2.90695,1995.7,1995.4,12.05775]
[1617813745854,2.90695,1995.7,1995.4,5.96775]
[1617813746157,2.90695,1995.7,1995.4,2.90695]
[1617813747154,2.90695,1995.5,1995.4,2.90695]
[1617813750056,5.19445,1995.5,1995.4,2.90695]
[1617813751958,5.19445,1995.5,1994.5,66.987]
[1617813752159,35.19445,1995.5,1994.5,67.9934]
[1617813752359,35.19445,1995.5,1993.6,30.0]
[1617813752558,74.6643,1995.4,1993.6,30.0]
[1617813753059,74.6643,1995.4,1993.8,6.09]
[1617813753258,74.6643,1995.4,1994.7,2.90695]
[1617813753660,2.2875,1995.5,1994.7,2.90695]
[1617813753862,2.2875,1995.5,1994.8,64.8307]
[1617813754062,2.2875,1995.5,1994.8,71.1307]
[1617813754560,4.2875,1995.5,1994.8,71.1307]
[1617813755062,4.2875,1995.5,1994.8,64.8307]
[1617813755361,2.90695,1994.9,1994.8,64.8307]
[1617813755561,5.15175,1994.9,1994.8,64.8307]
[1617813755763,5.15175,1994.9,1993.0,32.0]
[1617813755963,5.15175,1994.9,1993.2,67.7739]
[1617813756365,12.9405,1994.8,1993.3,6.09]
[1617813756876,2.0,1994.7,1993.3,6.09]
[1617813757064,32.0,1994.7,1993.3,6.09]
[1617813757266,32.0,1994.7,1993.5,2.90695]
[1617813758264,30.0,1994.7,1993.6,6.08]
[1617813758464,12.9405,1994.8,1993.6,6.08]
[1617813759164,12.9405,1994.8,1993.9,2.90695]
[1617813760466,2.0,1994.7,1993.3,2.3862]
[1617813760666,2.0,1994.7,1993.2,67.7739]
[1617813761067,45.0979,1994.8,1993.2,67.7739]
[1617813761367,45.0979,1994.8,1993.5,2.90695]
[1617813761570,15.0979,1994.8,1994.3,68.2155]
[1617813761899,15.0979,1994.8,1994.3,70.6802]
[1617813761900,12.9405,1994.8,1994.3,70.6802]
[1617813762092,12.9405,1994.8,1994.4,6.22]
[1617813762468,12.9405,1994.8,1994.3,2.4647]
[1617813763167,2.90695,1994.4,1994.3,2.4647]
[1617813764769,2.90695,1994.4,1994.3,8.6547]
[1617813764972,2.90695,1994.4,1994.3,2.4647]
[1617813765169,2.90695,1994.4,1994.3,5.37165]
[1617813765973,2.90695,1994.4,1994.3,11.39165]
[1617813767273,2.90695,1994.6,1994.3,11.39165]
[1617813768672,2.90695,1994.6,1994.3,8.4847]
[1617813768873,2.90695,1994.6,1994.3,6.02]
[1617813769374,12.9405,1994.8,1994.3,2.90695]
[1617813769375,2.90695,1994.4,1994.3,2.90695]
[1617813769573,2.90695,1994.4,1993.3,30.0]
[1617813769777,2.90695,1994.4,1993.6,75.844]
[1617813770174,2.90695,1994.4,1993.7,6.12]
[1617813771274,14.887,1994.8,1994.0,2.90695]
[1617813771675,12.9405,1994.8,1994.1,6.22]
[1617813772374,12.9405,1994.8,1994.1,8.6071]
[1617813773376,12.9405,1994.8,1994.4,2.90695]
[1617813773678,12.9405,1994.8,1994.5,6.27]
[1617813773876,12.9405,1994.8,1994.5,8.5277]
[1617813775177,12.9405,1994.8,1994.5,38.5277]
[1617813775394,12.9405,1994.8,1994.7,2.90695]
[1617813775677,12.9405,1994.8,1994.7,8.95695]
[1617813779980,12.9405,1994.8,1994.7,38.95695]
[1617813781583,12.9405,1994.8,1994.7,8.95695]
[1617813783487,12.9405,1994.8,1994.7,38.95695]
[1617813783888,2.90695,1995.6,1994.7,38.95695]
[1617813784589,2.90695,1995.6,1995.1,56.8914]
[1617813784791,12.9433,1995.7,1995.2,2.0]
[1617813785089,12.9433,1995.7,1995.2,38.14]
[1617813785490,12.9433,1995.7,1995.6,2.90695]
[1617813785690,12.9433,1995.7,1995.6,5.48785]
[1617813785889,12.9433,1995.7,1995.6,11.73785]
[1617813795104,70.8255,1995.7,1995.6,9.15695]
[1617813795304,12.9433,1995.7,1995.6,2.90695]
[1617813795506,12.9433,1995.7,1995.4,2.90695]
[1617813795507,73.74115,1995.7,1995.4,2.90695]
[1617813796707,73.74115,1995.7,1995.5,6.31]
[1617813798510,12.9433,1995.7,1995.5,8.9367]
[1617813799712,15.85025,1995.7,1995.6,2.90695]
[1617813800015,15.85025,1995.7,1995.6,8.94695]
[1617813801013,12.9433,1995.7,1995.6,8.94695]
[1617813801812,12.9433,1995.7,1995.6,38.94695]
[1617813805915,12.9433,1995.7,1995.6,8.94695]
[1617813808016,12.9433,1995.7,1995.6,38.94695]
[1617813809718,12.9433,1995.7,1995.6,41.13855]
[1617813810619,12.9433,1995.7,1995.6,38.94695]
[1617813811819,12.9433,1995.7,1995.6,8.94695]
[1617813812220,15.9435,1995.7,1995.6,8.94695]
[1617813813425,12.9433,1995.7,1995.6,8.94695]
[1617813814326,12.9433,1995.7,1995.6,72.01855]
[1617813821838,12.9433,1995.7,1995.6,8.94695]
[1617813822041,15.953,1995.7,1995.6,8.94695]
[1617813822378,16.9692,1995.7,1995.6,7.0271]
[1617813822541,15.953,1995.7,1994.7,94.6801]
[1617813823340,15.953,1995.7,1994.8,6.24]
[1617813823840,15.953,1995.7,1995.2,2.90695]
[1617813824142,15.953,1995.7,1995.3,6.05]
[1617813825846,15.953,1995.7,1995.4,2.90695]
[1617813826046,15.953,1995.7,1995.5,6.26]
[1617813826247,12.9433,1995.7,1995.5,6.26]
[1617813827849,12.9433,1995.7,1995.6,2.90695]
[1617813828249,12.9433,1995.7,1995.6,8.96695]
[1617813832953,12.9433,1995.7,1995.6,65.70175]
[1617813833955,15.85025,1995.7,1995.6,65.70175]
[1617813834452,15.85025,1995.7,1995.6,8.96695]
[1617813836754,15.85025,1995.7,1995.6,86.61465]
[1617813838266,12.9433,1995.7,1995.6,116.61465]
[1617813841662,12.9433,1995.7,1995.6,118.61465]
[1617813841863,2.90695,1996.8,1995.6,40.96695]
[1617813842075,2.90695,1996.8,1996.3,63.4771]
[1617813842262,2.90695,1996.8,1996.3,66.0157]
[1617813842476,2.90695,1996.8,1996.4,6.06]
[1617813843764,2.90695,1996.8,1996.4,36.06]
[1617813844063,13.1217,1997.3,1996.7,2.90695]
[1617813844265,13.1217,1997.3,1996.8,6.05]
[1617813844868,13.96561393,1998.1,1996.8,6.05]
[1617813845268,13.9361,1998.1,1996.8,6.05]
[1617813845867,13.9361,1998.1,1997.4,2.90695]
[1617813846168,13.9361,1998.1,1997.4,5.67595]
[1617813846367,13.9361,1998.1,1997.5,6.11]
[1617813847583,13.9361,1998.1,1997.9,68.7655]
[1617813847778,13.9361,1998.1,1997.9,71.5204]
[1617813848069,2.90695,1998.0,1997.9,74.42735]
[1617813848468,2.90695,1998.0,1997.9,80.61735]
[1617813849169,2.90695,1998.0,1997.9,11.85185]
[1617813849370,2.90695,1998.0,1997.9,9.09695]
[1617813849570,2.90695,1998.0,1997.9,6.19]
[1617813850172,2.90695,1998.0,1997.9,30.0]
[1617813850373,2.90695,1998.0,1997.9,107.3978]
[1617813850872,2.90695,1998.0,1997.9,36.2]
[1617813851587,0.05900561,1999.1,1997.9,36.2]
[1617813851588,0.02949942,1999.1,1997.9,36.2]
[1617813851783,0.02949942,1999.1,1997.9,38.7831]
[1617813851984,14.1182,1999.3,1998.9,2.90695]
[1617813852175,14.1182,1999.3,1999.0,36.25]
[1617813853879,14.1182,1999.3,1999.2,2.90695]
[1617813854379,14.1182,1999.3,1999.2,76.75715]
[1617813855182,14.1182,1999.3,1999.2,109.81155]
[1617813856894,14.1182,1999.3,1999.2,41.98135]
[1617813857282,1.0,1999.4,1999.2,41.98135]
[1617813857483,2.90695,1999.8,1999.2,41.98135]
[1617813857894,2.90695,1999.8,1999.7,2.90695]
[1617813858096,2.90695,1999.8,1999.7,35.61285]
[1617813858286,2.90695,1999.8,1999.7,41.78285]
[1617813859811,2.90695,1999.8,1999.7,11.78285]
[1617813859993,2.90695,1999.8,1999.7,9.07695]
[1617813861202,2.0,2000.6,1999.7,6.17]
[1617813861893,2.0,2000.6,1999.3,62.8369]
[1617813861894,2.0,2000.6,1999.4,6.07]
[1617813862096,2.90695,1999.5,1999.4,6.07]
[1617813862293,5.52995,1999.5,1999.4,6.07]
[1617813862592,5.52995,1999.5,1998.6,6.25]
[1617813863193,5.52995,1999.5,1998.6,7.2528]
[1617813863392,2.0,1999.4,1998.6,6.25]
[1617813863694,32.0,1999.4,1998.3,76.8195]
[1617813864192,2.90695,1998.4,1998.1,2.90695]
[1617813864494,5.53205,1998.4,1998.1,2.90695]
[1617813864693,5.53205,1998.4,1998.2,6.03]
[1617813865092,5.53205,1998.4,1997.9,76.7338]
[1617813865294,5.53205,1998.4,1996.9,30.0]
[1617813865495,5.53205,1998.4,1997.0,67.2058]
[1617813865994,2.6251,1998.4,1997.6,2.90695]
[1617813866198,62.0482,1998.7,1997.6,2.90695]
[1617813866397,60.0482,1998.7,1997.7,6.07]
[1617813867007,62.0482,1998.7,1997.7,6.07]
[1617813867603,62.0482,1998.7,1997.2,6.02]
[1617813867803,62.5196,1998.7,1997.7,0.9946]
[1617813868004,62.5196,1998.7,1998.2,2.90695]
[1617813868206,2.4714,1998.7,1998.2,2.90695]
[1617813868522,2.4714,1998.7,1998.3,6.15]
[1617813868805,4.4714,1998.7,1997.8,74.7889]
[1617813869618,2.4714,1998.7,1997.9,6.1]
[1617813869835,18.4645,1999.1,1997.9,6.1]
[1617813869836,16.1419,1999.1,1997.9,6.1]
[1617813870008,16.1419,1999.1,1998.1,2.90695]
[1617813870447,14.1419,1999.1,1998.1,2.90695]
[1617813870614,14.1419,1999.1,1998.2,6.25]
[1617813872032,2.90695,1998.3,1998.2,6.25]
[1617813872227,2.90695,1998.3,1998.1,2.90695]
[1617813872610,2.90695,1998.3,1998.2,6.12]
[1617813873612,2.90695,1998.3,1997.8,71.8159]
[1617813873814,5.51785,1998.3,1997.8,71.8159]
[1617813874014,2.90695,1997.9,1997.8,71.8159]
[1617813874213,2.90695,1997.9,1997.6,2.90695]
[1617813874432,5.78895,1997.9,1996.5,79.776]
[1617813875015,5.78895,1997.9,1996.6,6.08]
[1617813875225,15.677,1997.8,1996.6,6.08]
[1617813875816,45.677,1997.8,1996.6,6.08]
[1617813876035,2.90695,1996.7,1995.6,3.0104]
[1617813876218,5.43225,1996.7,1995.1,76.4829]
[1617813877017,14.0207,1996.6,1995.2,6.31]
[1617813878017,14.0207,1996.6,1995.9,2.90695]
[1617813878420,14.0207,1996.6,1996.0,6.13]
[1617813879724,14.0207,1996.6,1995.9,2.90695]
[1617813879923,2.0,1996.5,1995.9,2.90695]
[1617813880125,2.90695,1996.0,1995.7,2.90695]
[1617813880327,5.37775,1996.0,1995.1,76.4829]
[1617813880926,5.37775,1996.0,1995.2,6.12]
[1617813882026,2.90695,1996.0,1995.9,2.90695]
[1617813882228,2.90695,1996.0,1995.9,5.66435]
[1617813882430,2.90695,1996.0,1995.9,11.77435]
[1617813882829,2.90695,1996.0,1995.9,73.86645]
[1617813883854,2.90695,1996.0,1995.9,11.77435]
[1617813884730,2.90695,1996.0,1995.9,2.7574]
[1617813885051,2.90695,1996.0,1995.3,57.5563]
[1617813885231,5.53935,1996.0,1995.3,57.5563]
[1617813885433,5.53935,1996.0,1995.4,6.07]
[1617813886033,2.6324,1996.0,1995.5,2.90695]
[1617813886335,14.0207,1996.6,1995.5,2.90695]
[1617813886633,14.0207,1996.6,1995.6,6.29]
[1617813887034,14.0207,1996.6,1996.1,78.2049]
[1617813887233,14.0207,1996.6,1996.2,6.26]
[1617813888138,2.90695,1996.3,1996.2,6.26]
[1617813888637,5.67805,1996.3,1996.2,6.26]
[1617813888836,5.67805,1996.3,1996.1,6.11]
[1617813889137,5.67805,1996.3,1996.2,6.21]
[1617813889338,5.67805,1996.3,1996.1,6.08]
[1617813889737,5.67805,1996.3,1996.0,2.90695]
[1617813889738,5.67805,1996.3,1996.2,6.12]
[1617813890137,5.67805,1996.3,1996.2,2.90695]
[1617813890337,5.67805,1996.3,1996.2,9.13695]
[1617813890737,5.67805,1996.3,1996.2,2.90695]
[1617813891037,5.67805,1996.3,1996.2,9.16695]
[1617813892640,2.90695,1996.3,1996.2,9.16695]
[1617813894840,2.90695,1996.3,1996.2,6.26]
[1617813895140,4.96935,1996.3,1995.1,80.166]
[1617813895754,4.96935,1996.3,1995.2,6.24]
[1617813896149,4.96935,1996.3,1995.7,2.90695]
[1617813896150,2.0624,1996.3,1995.7,2.90695]
[1617813897244,4.0624,1996.3,1995.7,2.90695]
[1617813897445,4.0624,1996.3,1995.1,80.166]
[1617813898147,2.90695,1995.2,1995.1,2.90695]
[1617813898447,5.05545,1995.2,1995.1,8.96695]
[1617813898745,5.05545,1995.2,1994.1,69.518]
[1617813899347,5.05545,1995.2,1994.2,6.18]
[1617813899947,5.05545,1995.2,1994.2,36.18]
[1617813900148,2.1485,1995.2,1995.0,2.90695]
[1617813900447,14.0779,1995.6,1995.1,6.31]
[1617813902248,2.90695,1995.2,1995.1,6.31]
[1617813903751,2.90695,1995.2,1995.0,2.90695]
[1617813904251,5.66045,1995.2,1995.0,2.90695]
[1617813904450,5.66045,1995.2,1995.1,6.01]
[1617813904753,5.66045,1995.2,1994.7,77.5358]
[1617813905250,5.66045,1995.2,1994.8,6.22]
[1617813905550,2.90695,1995.2,1994.8,6.22]
[1617813906150,14.0779,1995.6,1994.9,2.90695]
[1617813906349,14.0779,1995.6,1994.9,5.93025]
[1617813906552,14.0779,1995.6,1995.0,6.27]
[1617813907155,14.0779,1995.6,1995.0,36.27]
[1617813908159,14.0779,1995.6,1995.1,2.90695]
[1617813908465,14.0779,1995.6,1995.2,6.17]
[1617813910062,14.0779,1995.6,1995.2,36.17]
[1617813910264,14.0779,1995.6,1995.5,2.90695]
[1617813910467,14.0779,1995.6,1995.5,8.93695]
[1617813910671,14.0779,1995.6,1995.5,38.93695]
[1617813911662,2.90695,1996.0,1995.6,76.2048]
[1617813911863,2.68895,1996.0,1995.7,36.17]
[1617813912363,2.68895,1996.0,1995.9,2.90695]
[1617813912563,2.68895,1996.0,1995.9,9.07695]
[1617813913162,2.68895,1996.0,1995.9,39.07695]
[1617813914180,2.90695,1996.2,1995.9,41.07695]
[1617813915361,2.90695,1996.2,1995.9,39.07695]
[1617813916163,2.90695,1996.2,1996.1,2.90695]
[1617813916363,2.90695,1996.2,1996.1,32.90695]
[1617813916564,2.90695,1996.2,1996.1,39.01695]
[1617813916765,12.9024,1997.4,1996.1,39.01695]
[1617813917165,12.9024,1997.4,1997.0,67.5494]
[1617813917666,12.9024,1997.4,1997.1,6.12]
[1617813917865,12.9024,1997.4,1997.2,30.0]
[1617813918266,12.9024,1997.4,1997.3,9.04695]
[1617813918465,12.9024,1997.4,1997.3,39.04695]
[1617813919167,2.90695,1997.9,1997.3,39.04695]
[1617813919868,26.1866,1999.1,1997.3,39.04695]
[1617813920068,26.1866,1999.1,1998.2,78.1879]
[1617813920285,26.1866,1999.1,1998.4,2.90695]
[1617813920668,26.1866,1999.1,1998.5,6.0]
[1617813921775,26.1866,1999.1,1998.2,2.2639]
[1617813922375,2.90695,1998.3,1998.2,2.2639]
[1617813922570,26.1866,1999.1,1998.2,2.2639]
[1617813922775,26.1866,1999.1,1998.2,8.4039]
[1617813923176,26.1866,1999.1,1998.3,76.9257]
[1617813923674,26.1866,1999.1,1998.4,6.0]
[1617813924274,26.1866,1999.1,1999.0,2.90695]
[1617813924477,13.3234,1999.1,1999.0,5.38885]
[1617813924674,13.3234,1999.1,1999.0,11.55885]
[1617813925474,13.3234,1999.1,1999.0,86.85915]
[1617813926677,13.3234,1999.1,1999.0,11.55885]
[1617813926877,13.3234,1999.1,1998.1,56.5806]
[1617813927079,15.8323,1999.1,1998.1,56.5806]
[1617813927277,15.8323,1999.1,1998.2,6.25]
[1617813928277,15.8323,1999.1,1998.8,2.90695]
[1617813928678,13.3234,1999.1,1998.9,67.5533]
[1617813929179,13.3234,1999.1,1998.9,70.0177]
[1617813930287,13.3234,1999.1,1999.0,2.90695]
[1617813930683,13.3234,1999.1,1999.0,9.12695]
[1617813932886,13.3234,1999.1,1999.0,6.22]
[1617813933286,13.3234,1999.1,1997.9,6.05]
[1617813933489,16.1723,1999.1,1997.9,36.05]
[1617813933687,16.1723,1999.1,1999.0,6.08]
[1617813933886,16.1723,1999.1,1998.0,6.18]
[1617813934088,16.1723,1999.1,1998.1,30.0]
[1617813934288,16.1723,1999.1,1999.0,71.35155]
[1617813934589,13.3234,1999.1,1999.0,65.27155]
[1617813934792,13.3234,1999.1,1999.0,73.73925]
[1617813935197,13.3234,1999.1,1999.0,103.73925]
[1617813935389,14.8713,2000.6,1999.0,41.37465]
[1617813935590,13.7713,2000.6,1999.8,73.002]
[1617813935791,13.7713,2000.6,1999.8,75.4388]
[1617813935990,13.7713,2000.6,1999.9,6.12]
[1617813936289,1.1,2000.9,2000.4,2.90695]
[1617813936490,1.1,2000.9,2000.4,5.09825]
[1617813936690,1.1,2000.9,2000.5,6.3]
[1617813937090,13.7063,2001.4,2000.5,6.3]
[1617813937291,13.7063,2001.4,2001.0,63.3369]
[1617813937590,13.7063,2001.4,2001.0,66.2835]
[1617813937791,13.7063,2001.4,2001.1,6.1]
[1617813938396,2.90695,2001.2,2001.1,6.1]
[1617813938594,2.90695,2001.2,2000.4,2.90695]
[1617813938894,2.90695,2001.2,2000.4,68.86175]
[1617813939395,2.90695,2001.2,2000.5,6.05]
[1617813940396,2.90695,2000.6,2000.5,6.05]
[1617813942095,13.7063,2001.4,2000.5,6.05]
[1617813942297,13.7063,2001.4,2001.2,2.90695]
[1617813942498,13.7063,2001.4,2001.2,5.88965]
[1617813942903,13.7063,2001.4,2001.3,6.14]
[1617813944500,16.61325,2001.4,2001.3,6.14]
[1617813944700,16.61325,2001.4,2001.3,78.3932]
[1617813946501,16.61325,2001.4,2001.3,6.14]
[1617813946701,16.61325,2001.4,2000.5,79.322]
[1617813947305,16.61325,2001.4,2000.6,6.12]
[1617813948302,16.61325,2001.4,2000.5,79.322]
[1617813948504,2.90695,2000.6,2000.5,79.322]
[1617813948706,5.67595,2000.6,2000.1,2.90695]
[1617813948904,5.67595,2000.6,2000.5,6.13]
[1617813949305,5.67595,2000.6,2000.2,6.0]
[1617813949604,5.67595,2000.6,2000.5,6.07]
[1617813950005,5.67595,2000.6,1996.2,2.0962]
[1617813950006,72.5186,2000.4,1998.9,69.3636]
[1617813950406,72.5186,2000.4,1999.5,2.90695]
[1617813950608,14.035,2000.3,1999.5,2.90695]
[1617813950807,14.035,2000.3,1999.6,6.14]
[1617813951309,14.035,2000.3,1998.9,69.3636]
[1617813951708,14.035,2000.3,1997.9,30.0]
[1617813952107,58.5853,1999.7,1998.5,6.01]
[1617813952411,60.9686,1999.7,1998.7,2.90695]
[1617813952808,60.9686,1999.7,1998.8,6.11]
[1617813954312,2.3833,1999.7,1998.8,6.11]
[1617813954608,2.3833,1999.7,1999.2,2.90695]
[1617813954809,2.3833,1999.7,1999.3,6.11]
[1617813955509,2.3833,1999.7,1999.1,6.11]
[1617813955710,2.3833,1999.7,1999.0,82.3703]
[1617813956110,2.3833,1999.7,1998.4,0.9876]
[1617813956311,63.3931,1999.6,1999.1,6.13]
[1617813956513,2.90695,1999.2,1999.1,6.13]
[1617813956712,5.50475,1999.2,1998.7,2.90695]
[1617813956912,5.50475,1999.2,1999.1,6.01]
[1617813957211,5.50475,1999.2,1998.7,2.90695]
[1617813957411,5.50475,1999.2,1998.8,6.24]
[1617813957611,5.50475,1999.2,1999.1,6.11]
[1617813958011,5.50475,1999.2,1998.7,2.90695]
[1617813958012,5.50475,1999.2,1998.8,6.3]
[1617813958211,2.90695,1999.2,1999.1,6.3]
[1617813958412,2.90695,1999.2,1999.1,9.20695]
[1617813958613,14.035,2000.3,1999.1,5.88115]
[1617813958912,14.035,2000.3,1999.5,56.0848]
[1617813959213,14.035,2000.3,1999.6,6.29]
[1617813960512,14.035,2000.3,2000.2,2.90695]
[1617813960717,14.035,2000.3,2000.2,4.81715]
[1617813960913,14.035,2000.3,2000.2,11.00715]
[1617813964416,70.4017,2000.3,2000.2,9.09695]
[1617813964715,73.30865,2000.3,2000.2,6.19]
[1617813964915,73.30865,2000.3,1999.0,78.1978]
[1617813965216,75.30205,2000.3,1999.0,78.1978]
[1617813965716,75.30205,2000.3,1999.1,6.25]
[1617813966517,72.3951,2000.3,1999.1,6.25]
[1617813966919,72.3951,2000.3,1999.0,78.1978]
[1617813967419,72.3951,2000.3,1999.1,6.0]
[1617813967619,46.0284,2000.3,1997.7,30.0]
[1617813967820,71.473,1999.5,1997.7,30.0]
[1617813968120,74.3556,1999.5,1997.7,30.0]
[1617813968319,74.3556,1999.5,1997.8,8.02]
[1617813968519,74.3556,1999.5,1998.8,2.90695]
[1617813968920,74.3556,1999.5,1998.9,6.26]
[1617813970323,2.8826,1999.5,1998.9,6.26]
[1617813970522,2.8826,1999.5,1999.2,2.90695]
[1617813970924,2.8826,1999.5,1999.3,6.25]
[1617813971224,56.5989,2000.0,1999.3,6.25]
[1617813972625,2.90695,1999.4,1999.3,6.25]
[1617813973524,56.5989,2000.0,1999.3,6.25]
[1617813974626,56.5989,2000.0,1999.8,2.90695]
[1617813974926,13.9573,2000.2,1999.9,6.03]
[1617813976426,13.9573,2000.2,1999.8,2.90695]
[1617813976634,2.90695,1999.9,1999.8,2.90695]
[1617813977028,2.90695,1999.9,1998.6,83.0546]
[1617813977531,2.90695,1999.9,1998.1,2.0]
[1617813977730,70.034,1999.5,1998.7,6.25]
[1617813978044,70.034,1999.5,1998.6,6.09]
[1617813978045,102.4369,1999.5,1998.6,6.09]
[1617813978229,72.4369,1999.5,1998.0,3.47]
[1617813978453,42.7916,1999.4,1997.2,2.0]
[1617813978742,78.3324,1998.7,1998.2,2.90695]
[1617813978931,80.4956,1998.7,1998.2,2.90695]
[1617813979133,80.4956,1998.7,1998.3,3.6]
[1617813979744,2.1632,1998.7,1998.3,3.6]
[1617813980538,2.90695,1998.4,1998.3,3.6]
[1617813981532,2.90695,1998.4,1998.2,2.90695]
[1617813982033,2.90695,1998.4,1998.3,6.12]
[1617813982634,2.90695,1998.4,1998.2,2.90695]
[1617813984134,2.90695,1998.4,1997.8,74.5613]
[1617813984533,2.90695,1998.4,1997.9,6.15]
[1617813984739,2.1632,1998.7,1998.1,2.90695]
[1617813984940,13.3767,1999.0,1998.2,6.17]
[1617813985838,13.3767,1999.0,1998.1,2.90695]
[1617813986439,43.3767,1999.0,1998.1,2.90695]
[1617813986640,2.90695,1998.2,1998.1,2.90695]
[1617813986840,5.79775,1998.2,1998.1,2.90695]
[1617813987243,5.79775,1998.2,1997.2,57.5785]
[1617813987742,5.79775,1998.2,1997.3,6.05]
[1617813988643,2.90695,1998.2,1998.1,2.90695]
[1617813989343,2.90695,1998.2,1997.2,60.1133]
[1617813989843,2.90695,1998.2,1997.2,57.5785]
[1617813990146,2.90695,1998.2,1997.3,6.18]
[1617813990844,13.9199,1998.3,1997.8,2.90695]
[1617813991044,13.9199,1998.3,1997.9,6.21]
[1617813992752,2.90695,1998.0,1997.9,6.21]
[1617813993349,2.90695,1998.0,1997.8,2.90695]
[1617813993547,2.90695,1998.0,1997.2,57.5785]
[1617813993750,2.90695,1998.0,1996.4,2.0]
[1617813993961,61.7557,1997.6,1996.4,2.0]
[1617813994251,64.4925,1997.6,1995.9,100.2669]
[1617813994451,64.4925,1997.6,1996.5,6.26]
[1617813994650,64.4925,1997.6,1996.0,6.01]
[1617813994958,2.90695,1997.0,1996.7,2.90695]
[1617813995151,5.09185,1997.0,1996.7,2.90695]
[1617813995365,5.09185,1997.0,1996.8,4.1]
[1617813995952,2.1849,1997.0,1996.8,4.1]
[1617813996153,13.6936,1997.5,1996.8,4.1]
[1617813996855,2.90695,1997.0,1996.9,2.90695]
[1617813997153,2.90695,1997.0,1996.9,8.71695]
[1617813999064,13.6936,1997.5,1996.9,8.71695]
[1617814000957,13.6936,1997.5,1997.4,2.90695]
[1617814001258,13.6936,1997.5,1997.4,9.18695]
[1617814001659,13.6936,1997.5,1997.4,11.38555]
[1617814002461,13.6936,1997.5,1997.4,8.4786]
[1617814002763,13.6936,1997.5,1997.4,67.496]
[1617814003061,13.6936,1997.5,1997.4,101.39815]
[1617814003461,13.6936,1997.5,1997.4,100.40295]
[1617814003665,13.6936,1997.5,1997.4,102.40295]
[1617814006366,13.6936,1997.5,1997.4,100.40295]
[1617814007566,13.6936,1997.5,1997.4,102.40295]
[1617814007767,13.6936,1997.5,1997.4,100.40295]
[1617814009387,59.43615,1998.7,1997.4,100.40295]
[1617814009575,2.90695,1998.7,1997.4,41.38555]
[1617814009782,2.90695,1998.7,1997.9,58.135]
[1617814009985,2.90695,1998.7,1997.9,60.9061]
[1617814010274,2.90695,1998.7,1998.0,6.08]
[1617814010674,58.7975,1998.5,1998.0,6.08]
[1617814011074,58.7975,1998.5,1997.6,30.0]
[1617814011075,58.7975,1998.5,1998.4,2.90695]
[1617814011483,58.7975,1998.5,1998.4,9.03695]
[1617814012875,58.7975,1998.5,1998.4,12.00025]
[1617814013177,2.90695,1998.7,1998.4,12.00025]
[1617814013376,61.3222,1999.3,1998.4,42.00025]
[1617814013682,13.3816,1999.6,1998.8,81.7102]
[1617814013885,13.3816,1999.6,1998.8,84.7869]
[1617814014080,13.3816,1999.6,1998.8,114.7869]
[1617814014282,13.3816,1999.6,1998.9,6.25]
[1617814015193,13.3816,1999.6,1999.2,2.90695]
[1617814015391,13.3816,1999.6,1999.3,6.13]
[1617814017097,13.3816,1999.6,1999.4,2.90695]
[1617814017289,13.3816,1999.6,1999.3,6.13]
[1617814017490,13.3816,1999.6,1998.9,6.24]
[1617814017895,13.3816,1999.6,1999.4,6.26]
[1617814018091,13.3816,1999.6,1998.8,81.7102]
[1617814018092,13.3816,1999.6,1998.9,6.25]
[1617814019093,13.3816,1999.6,1999.1,2.90695]
[1617814019492,13.3816,1999.6,1999.2,6.29]
[1617814019897,69.6518,1999.5,1999.2,6.29]
[1617814021193,2.90695,1999.3,1999.2,6.29]
[1617814021393,69.6518,1999.5,1999.2,6.29]
[1617814022495,69.6518,1999.5,1998.5,6.2]
[1617814022895,69.6518,1999.5,1999.3,6.03]
[1617814023095,2.90695,1999.4,1999.2,2.90695]